[Event "FIDE CB Open 2022"]
[Site "Ceske Budejovice"]
[Date "2022.07.05"]
[Round "5.38"]
[White "Lang, Simon"]
[Black "Steinbauer, Sebastian"]
[Result "1-0"]
[ECO "C42"]
[WhiteElo "1942"]
[BlackElo "1808"]
[Annotator "TA"]
[PlyCount "113"]
[EventDate "2022.07.01"]
[EventType "swiss"]
[EventCountry "CZE"]
[SourceTitle "playchess.com"]
[Source "ChessBase"]
[SourceQuality "1"]
[TimeControl "40/5400+30:1800+30"]

{[%evp 11,113,11,40,34,34,30,43,39,42,28,39,26,35,26,29,24,27,15,33,28,116,114,114,113,119,93,127,102,101,86,81,69,106,81,98,102,124,128,133,133,116,90,125,107,127,128,109,96,127,106,111,92,161,92,94,69,93,0,158,97,97,97,142,55,114,0,113,97,117,97,104,97,101,104,144,127,141,131,161,186,284,327,428,396,408,401,2248,1076,1060,1050,8479,6287,1121,293,29979,29980,29980,29981,29981,29982,29990,29991,29991,29983]} 1. e4 {[%emt 0:00:26]} e5 {[%emt 0:00:06]} 2. Nf3 {[%emt 0:00:34]} Nf6 {[%emt 0:00:07]} 3. Nxe5 {[%emt 0:00:38]} d6 {[%emt 0:00:06]} 4. Nf3 {[%emt 0:00:46]} Nxe4 {[%emt 0:00:06]} 5. Nc3 {[%emt 0:00:35]} Nxc3 {[%emt 0:00:26]} 6. dxc3 {[%emt 0:00:29]} Bg4 {[%emt 0:00:46]} 7. Bd3 {[%emt 0:01:24] C42: Petroff Defence: 3 Nxe5 and unusual White 3rd moves.} Nc6 {[%emt 0:00:47]} 8. h3 {[%emt 0:01:27]} Bh5 {[%emt 0:00:22]} 9. Be3 {[%emt 0:01:53] [#] White is slightly better.} Qd7 $146 {[%emt 0:00:48]} ({Predecessor:} 9... Ne5 10. g4 Bg6 11. Nxe5 dxe5 12. Qf3 c6 13. O-O-O Qf6 14. Qe2 Be7 15. g5 Bxd3 16. Qxd3 Qe6 17. Kb1 Rd8 18. Qe4 O-O 19. h4 b6 20. c4 {½-½ (20) Thorsteinsson,A (2275)-Bjarnason,S (2285) Reykjavik 1997}) 10. Qd2 {[%emt 0:03:11]} Ne5 {[%emt 0:02:14]} 11. Nxe5 {[%emt 0:06:33]} dxe5 {[%emt 0:00:06]} 12. f3 {[%emt 0:01:17]} O-O-O {[%emt 0:01:14]} 13. O-O-O {[%emt 0:03:29][%cal Od3f5]} Be7 {[%emt 0:03:01]} 14. Qf2 {[%emt 0:03:30] Hoping for g4.} ({Don't take} 14. Bxa7 Bg6 $16) (14. Qe2 $5 {[%cal Rg2g4]} Qa4 15. Kb1 $11) 14... Qa4 {[%emt 0:01:15]} 15. Kb1 {[%emt 0:12:09]} f6 {[%emt 0:01:00]} (15... Bg6 $11 {keeps the balance.}) 16. Bxa7 {[%emt 0:02:06]} Bg6 {[%emt 0:03:20] Inhibits Bf5+.} 17. Bxg6 {[%emt 0:04:51]} hxg6 {[%emt 0:00:12]} 18. Be3 {[%emt 0:00:27]} (18. Bc5 {looks sharper.} Bxc5 19. Qxc5 Rhe8 20. Rxd8+ Rxd8 21. Qe7) 18... Rd7 {[%emt 0:03:30]} 19. Rxd7 {[%emt 0:01:01]} Qxd7 {[%emt 0:00:08]} 20. Qd2 {[%emt 0:00:17]} Qc6 {[%emt 0:00:37]} 21. Rd1 {[%emt 0:01:15]} Rd8 {[%emt 0:00:41]} 22. Qe2 {[%emt 0:01:05]} Rxd1+ {[%emt 0:00:14]} 23. Qxd1 $16 {[%emt 0:00:00][%mdl 4096] Endgame KQB-KQB} Bc5 {[%emt 0:00:16]} 24. Bc1 {[%emt 0:07:13]} e4 {[%emt 0:01:27]} 25. fxe4 {[%emt 0:04:57]} Qxe4 {[%emt 0:00:15]} 26. Qd2 {[%emt 0:01:53]} g5 {[%emt 0:00:44]} 27. b4 {[%emt 0:00:37]} Bd6 {[%emt 0:00:12]} 28. Qe3 {[%emt 0:01:10]} Qc6 {[%emt 0:01:25]} 29. Bd2 {[%emt 0:08:05]} (29. Kb2 {is more complex.} Kd7 30. Qf3 b5 31. Qg4+) 29... Kb8 {[%emt 0:01:16]} 30. Qe2 {[%emt 0:01:18]} Be5 {[%emt 0:00:22]} 31. Kb2 {[%emt 0:00:53]} Qb6 {[%emt 0:00:24]} (31... Qe6 $16 {keeps fighting.} 32. Be3 Qc6) 32. Qe4 {[%emt 0:03:53]} (32. Kb3 $18) 32... Qe6 {[%emt 0:06:25][%cal Oe5c3] Threatens to win with ...Bxc3+!} 33. Qd3 {[%emt 0:02:37]} Qc6 {[%emt 0:00:35]} 34. Qe2 {[%emt 0:00:15]} (34. Qd8+ $142 Ka7 35. Be3+ b6 36. Qd2) 34... Qb6 $1 {[%emt 0:00:09] [#]} 35. Qc4 {[%emt 0:01:30]} (35. Kb3 $142 $1) 35... Qf2 {[%emt 0:00:31][%csl LRd2,LRg2]} 36. Qd5 {[%emt 0:01:04]} Ka7 {[%emt 0:01:42] [#]} 37. Kb3 {[%emt 0:01:29]} (37. Bxg5 $1 $16 {[%cal Od5e4][%mdl 512] And now Qe4! would win.} Bxc3+ 38. Kxc3 Qg3+ 39. Kc4 fxg5 40. a4) 37... Qf1 {[%emt 0:00:29]} ({Better is} 37... Qg1 $14) 38. Kb2 {[%emt 0:04:58]} (38. Be3+ $16 b6 39. Kb2) 38... b6 {[%emt 0:00:57]} (38... Qf2 $1 $11) 39. a4 {[%emt 0:01:10] White now steadily converts the win.} Qa6 {[%emt 0:01:05]} 40. Qb5 {[%emt 0:06:27]} Qb7 {[%emt 0:00:58]} 41. Qe2 {[%emt 0:40:25]} Qd5 {[%emt 0:30:52]} 42. Be1 {[%emt 0:00:00]} Qd6 {[%emt 0:00:00]} 43. Kb3 {[%emt 0:00:00]} Kb8 {[%emt 0:00:00]} 44. Qf3 {[%emt 0:00:00]} Ka7 {[%emt 0:00:00]} 45. c4 {[%emt 0:00:00]} c5 {[%emt 0:00:00]} (45... Qd4 $142 46. c3 Qd7) 46. Qd5 $18 {[%emt 0:00:00]} Qc7 {[%emt 0:00:00]} 47. Bf2 {[%emt 0:00:00][%cal Rb4c5]} Bd6 {[%emt 0:00:00]} 48. c3 {[%emt 0:00:00]} cxb4 {[%emt 0:00:00]} (48... Be7 $142 49. a5 Kb8 50. axb6 Qxb6) 49. cxb4 {[%emt 0:00:00]} (49. a5 $142 Bc5 50. axb6+ Kxb6 51. Bxc5+ Qxc5 52. Qxc5+ Kxc5 53. cxb4+ Kb6 54. c5+ Kb5 55. Kc3) 49... Bg3 {[%emt 0:00:00]} 50. Bd4 {[%emt 0:00:00] aiming for a5.} Be5 {[%emt 0:00:00]} 51. Bxe5 {[%emt 0:00:00]} fxe5 {[%emt 0:00:00] KQ-KQ} 52. a5 $2 {[%emt 0:00:00]} (52. c5 g6 53. Qd6 Qf7+ 54. Kc3 bxc5 55. Qxc5+ Ka8 56. Qxe5) 52... Qe7 $2 {[%emt 0:00:00]} (52... bxa5 $18 53. Qxa5+ Qxa5 54. bxa5 Ka6) 53. axb6+ {[%emt 0:00:00] White mates.} Kxb6 {[%emt 0:00:00]} 54. c5+ {[%emt 0:00:00]} Kc7 {[%emt 0:00:00]} 55. b5 {[%emt 0:00:00][%cal Bb4b5,Bb5b6][%mdl 32]} e4 {[%emt 0:00:00]} 56. b6+ {[%emt 0:00:00]} Kc8 {[%emt 0:00:00]} 57. Qc6+ {[%emt 0:00:00] Weighted Error Value: White=0.31/Black=0.36} 1-0

[Event "FIDE CB Open 2022"]
[Site "Ceske Budejovice"]
[Date "2022.07.05"]
[Round "5.39"]
[White "Petirova, Iva"]
[Black "Milovs, Daniels"]
[Result "0-1"]
[ECO "C05"]
[WhiteElo "1722"]
[BlackElo "1926"]
[Annotator "TA"]
[PlyCount "62"]
[EventDate "2022.07.01"]
[EventType "swiss"]
[EventCountry "CZE"]
[SourceTitle "playchess.com"]
[Source "ChessBase"]
[SourceQuality "1"]
[TimeControl "40/5400+30:1800+30"]

{[%evp 15,62,0,35,19,9,8,26,-97,-32,-123,-110,-266,-62,-203,-102,-145,-128,-142,-131,-163,-157,-188,-104,-117,-85,-106,-56,-94,-75,-81,-71,-104,-95,-113,-104,-105,-93,-183,-154,-336,-320,-364,-289,-560,-554,-560,-552,-551,-547]} 1. e4 {[%emt 0:00:06][%cal Be2e4,Be4e5][%mdl 32]} e6 {[%emt 0:08:13]} 2. d4 {[%emt 0:00:07]} d5 {[%emt 0:00:02]} 3. Nd2 {[%emt 0:00:10]} Nf6 {[%emt 0:00:09]} 4. e5 {[%emt 0:00:00]} Nfd7 {[%emt 0:00:00]} 5. f4 {[%emt 0:00:19]} c5 {[%emt 0:00:02]} 6. c3 {[%emt 0:00:07]} Nc6 {[%emt 0:00:07]} 7. Ndf3 {[%emt 0:00:06]} Qb6 {[%emt 0:01:32]} 8. a3 {[%emt 0:00:21]} a5 {[%emt 0:02:41]} 9. b3 {[%emt 0:00:40] C05: French Tarrasch: 3...Nf6 4 e5 Nfd7, 5 f4 and 5 Bd3 sidelines.} Be7 {[%emt 0:03:21]} 10. h4 {[%emt 0:06:23]} f6 {[%emt 0:01:21] [#]} 11. Be3 $146 {[%emt 0:03:39]} (11. Bd3 $11) ({Predecessor:} 11. Bd3 Qc7 12. Ne2 Rb8 13. Qc2 Nf8 14. Be3 b6 15. h5 a4 16. h6 g6 17. Bb5 axb3 18. Qxb3 {1-0 (50) Perske,T (2448)-Feygin,M (2503) Germany 2019}) 11... O-O {[%emt 0:01:47]} (11... cxd4 $17 12. Bxd4 Nxd4 13. cxd4 fxe5 14. fxe5 O-O) 12. Bd3 {[%emt 0:02:09]} (12. Qc1 $15) 12... cxd4 $17 {[%emt 0:11:28]} 13. cxd4 {[%emt 0:00:09]} (13. Bxd4 $17 Nxd4 14. cxd4) 13... Bxa3 $2 {[%emt 0:01:44]} 14. Qc2 {[%emt 0:03:21] [#]} ({Not} 14. Bxh7+ $2 Kxh7 15. Kf2 fxe5 $1 16. fxe5 (16. Rxa3 $2 exf4 17. Bd2 Nxd4 $19) 16... Be7 $19) (14. Ne2 $15) 14... f5 {[%emt 0:04:13]} 15. Nh3 {[%emt 0:08:48] [#]} Nb4 $1 {[%emt 0:01:49]} 16. Qd1 {[%emt 0:00:18]} Nxd3+ {[%emt 0:01:50]} 17. Qxd3 {[%emt 0:00:06]} Be7 {[%emt 0:02:20]} 18. Kf2 {[%emt 0:04:19]} h5 {[%emt 0:06:35]} (18... Nb8 $19 19. g3 Bd7) 19. Nhg5 {[%emt 0:02:57]} Rd8 {[%emt 0:03:32]} 20. Ra2 {[%emt 0:03:21]} Nf8 {[%emt 0:01:34]} (20... Nb8 $17) 21. Rc1 {[%emt 0:02:35]} Bd7 {[%emt 0:01:51]} 22. Bd2 {[%emt 0:03:00]} Rdc8 {[%emt 0:10:37]} 23. Rxc8 {[%emt 0:11:47]} Bxc8 {[%emt 0:00:02]} 24. Ke3 {[%emt 0:04:40]} Bd7 {[%emt 0:01:37][%cal Bc8d7,Bd7a4,Ba4b3,Bb3c2][%mdl 32]} 25. Ne1 {[%emt 0:03:07]} a4 {[%emt 0:03:13][%cal Ba5a4,Ba4a3][%mdl 32]} 26. Rb2 {[%emt 0:10:43]} (26. bxa4 $17 Rxa4 27. Rxa4 Bxa4 28. Kf2) 26... Rc8 {[%emt 0:05:56] And now ...a3 would win.} 27. Qb1 $2 {[%emt 0:03:40]} (27. Kf2 $17) 27... a3 $19 {[%emt 0:04:43]} 28. Ra2 {[%emt 0:00:07]} Ba4 {[%emt 0:02:24]} 29. Nc2 $2 {[%emt 0:03:19]} (29. b4 Rc4 30. Qa1) 29... Qxb3+ {[%emt 0:01:01] Black is clearly winning.} 30. Qxb3 {[%emt 0:00:16]} Bxb3 {[%emt 0:00:06] This bishop pair is nice.} 31. Rxa3 {[%emt 0:01:55]} Bxc2 {[%emt 0:00:35] Weighted Error Value: White=0.64/Black=0.39} 0-1

[Event "FIDE CB Open 2022"]
[Site "Ceske Budejovice"]
[Date "2022.07.05"]
[Round "5.40"]
[White "Zaza, Martin"]
[Black "Wojdyla, Alex"]
[Result "1-0"]
[ECO "B53"]
[WhiteElo "1911"]
[BlackElo "1782"]
[Annotator "TA"]
[PlyCount "57"]
[EventDate "2022.07.01"]
[EventType "swiss"]
[EventCountry "CZE"]
[SourceTitle "playchess.com"]
[Source "ChessBase"]
[SourceQuality "1"]
[TimeControl "40/5400+30:1800+30"]

{[%evp 9,57,8,12,8,10,0,12,-36,-15,-22,20,20,37,18,33,0,53,35,50,36,56,52,107,56,183,158,164,143,144,109,154,150,142,141,220,202,185,70,66,67,175,183,411,400,395,379,399,406,435,412]} 1. e4 {[%emt 0:00:14]} c5 {[%emt 0:00:17]} 2. Nf3 {[%emt 0:00:07]} d6 {[%emt 0:00:04]} 3. d4 {[%emt 0:00:23]} cxd4 {[%emt 0:00:04]} 4. Qxd4 {[%emt 0:01:07]} Nc6 {[%emt 0:00:31]} 5. Qe3 {[%emt 0:00:30]} Nf6 {[%emt 0:01:48]} 6. Be2 {[%emt 0:03:51] B53: Sicilian: 2...d6: Lines with Qxd4.} g6 {[%emt 0:04:11]} 7. c4 {[%emt 0:01:21]} Bg7 {[%emt 0:01:08]} 8. h3 {[%emt 0:01:18]} (8. Nc3 $11 {feels stronger.}) 8... O-O {[%emt 0:01:19]} 9. O-O {[%emt 0:01:02]} b6 {[%emt 0:06:07]} 10. Nc3 {[%emt 0:01:11]} Bb7 {[%emt 0:00:44]} 11. Rb1 {[%emt 0:01:04]} Nd7 {[%emt 0:07:06]} 12. b3 {[%emt 0:02:29] [#]} Nce5 $146 {[%emt 0:06:57]} ({Black should play} 12... Nc5 $11) ({Predecessor:} 12... Nde5 13. Bb2 Nxf3+ 14. Bxf3 Nd4 15. Nd5 e5 16. Nc3 f5 17. Rbd1 Qh4 18. Nd5 Bxd5 19. cxd5 {0-1 (26) Stoyanov,T (2387)-Firouzja,A (2728) Chess.com INT 2020}) 13. Bb2 {[%emt 0:07:12][%cal Bc1b2,Bb2a3,Ba3d6][%mdl 32]} Nxf3+ {[%emt 0:08:56]} 14. Bxf3 {[%emt 0:00:19]} Ne5 {[%emt 0:03:43]} 15. Be2 {[%emt 0:01:31]} e6 {[%emt 0:01:11]} (15... Nd7 $14) 16. Rfd1 {[%emt 0:05:44]} (16. Rbd1 $16) 16... Qe7 {[%emt 0:00:25]} (16... Qh4 $1 $14) 17. Ba3 {[%emt 0:00:18]} Qf6 {[%emt 0:05:03][%cal Oe5c4]} 18. Bxd6 {[%emt 0:01:30]} Rfd8 {[%emt 0:01:11][%cal Oe5c4]} 19. Rbc1 {[%emt 0:05:00]} Qh4 {[%emt 0:03:16][%cal Od8d6] [#]} 20. f4 $1 {[%emt 0:04:36]} Nc6 {[%emt 0:01:28]} 21. e5 $36 {[%emt 0:01:44][%mdl 2048] White is on the roll. White is more active.} Bh6 {[%emt 0:02:21]} (21... Ne7 $16 22. g4 Bh6) 22. Bg4 {[%emt 0:01:58] Threatens to win with g3.} g5 {[%emt 0:07:29]} 23. g3 {[%emt 0:01:55]} (23. f5 $18 exf5 24. g3 (24. Bxf5 g4 $16)) 23... gxf4 $14 {[%emt 0:00:10]} 24. gxf4 {[%emt 0:00:07] Hoping for Ne4.} ({Don't play} 24. gxh4 $6 fxe3 25. Bf3 e2 26. Nxe2 Be3+ 27. Kh2 Bxc1 28. Rxc1 Rd7 $15) 24... f5 {[%emt 0:01:44] Prevents Ne4.} (24... Rxd6 $1 $14 25. exd6 f5) 25. exf6 $1 $18 {[%emt 0:00:18]} Qxf6 $2 {[%emt 0:00:18] [#]} (25... e5) 26. Qxe6+ {[%emt 0:00:16]} Qxe6 {[%emt 0:01:46]} 27. Bxe6+ {[%emt 0:00:04]} Kg7 {[%emt 0:00:04]} 28. Kf2 {[%emt 0:02:36]} Kf6 {[%emt 0:02:22]} 29. Bg4 {[%emt 0:00:29] Weighted Error Value: White=0.22 (precise) /Black=0.40} 1-0

[Event "FIDE CB Open 2022"]
[Site "Ceske Budejovice"]
[Date "2022.07.05"]
[Round "5.41"]
[White "Nagyova, Daniela"]
[Black "Saravanan Durga"]
[Result "0-1"]
[ECO "B92"]
[WhiteElo "1712"]
[BlackElo "1908"]
[Annotator "TA"]
[PlyCount "132"]
[EventDate "2022.07.01"]
[EventType "swiss"]
[EventCountry "CZE"]
[SourceTitle "playchess.com"]
[Source "ChessBase"]
[SourceQuality "1"]
[TimeControl "40/5400+30:1800+30"]

{[%evp 14,132,25,23,62,55,51,-18,-21,-109,-98,-126,-38,-181,-177,-187,-189,-201,-43,-35,-47,-224,-202,-224,-204,-294,-291,-391,-391,-391,-391,-403,-278,-435,-438,-979,-310,-741,-335,-1002,-984,-1139,-735,-834,-623,-752,-716,-696,-743,-623,0,-179,0,0,52,52,48,60,64,58,309,329,272,0,0,0,0,-91,-103,-122,-125,-110,0,0,0,-13,-8,-12,-8,-156,-184,-175,-156,-184,-169,-168,-184,-161,-162,-206,-159,-160,0,-187,0,-129,-113,-138,-141,-198,-22,-22,-22,-4788,-4063,-29978,-29980,-29980,-29981,-29983,-29983,-29987,-29986,-29985,-29983,-29996,-29990,-29991,-29992,-29992,-29989]} 1. e4 {[%emt 0:00:07]} c5 {[%emt 0:00:10]} 2. Nf3 {[%emt 0:00:13]} d6 {[%emt 0:00:09]} 3. d4 {[%emt 0:00:16]} cxd4 {[%emt 0:00:05]} 4. Nxd4 {[%emt 0:00:07]} Nf6 {[%emt 0:00:03]} 5. Nc3 {[%emt 0:00:15]} a6 {[%emt 0:00:12]} 6. Be2 {[%emt 0:00:44]} e5 {[%emt 0:00:36]} 7. Nb3 {[%emt 0:00:30]} Be6 {[%emt 0:01:26]} 8. f4 {[%emt 0:01:50]} exf4 {[%emt 0:05:05] 8...Be7 is setting a new trend. B92: Sicilian Najdorf: 6 Be2.} 9. Bxf4 {[%emt 0:02:30]} Nc6 {[%emt 0:02:55]} 10. g4 {[%emt 0:05:29]} (10. Qd3 $14) 10... Nxg4 $11 {[%emt 0:07:15] The position is equal.} 11. Qd2 {[%emt 0:10:49] [#]} (11. Rf1 $11) 11... Be7 $146 {[%emt 0:14:26]} ({Predecessor:} 11... h5 12. O-O-O Nce5 13. Kb1 g5 14. Bg3 Rc8 15. Nd4 Nc4 16. Bxc4 Rxc4 {1-0 (16) Franco Valencia,A (2133)-Orozco Lopez,L (2166) El Bagre 2012}) 12. Bxg4 {[%emt 0:08:42]} Bxg4 {[%emt 0:22:10]} (12... Bh4+ $1 $17 13. Kf1 Bxg4) 13. Ne2 {[%emt 0:08:01]} (13. Qg2 $1 $15 Bh4+ 14. Kd2) 13... Bh4+ $19 {[%emt 0:12:48]} 14. Ng3 {[%emt 0:06:06]} Ne5 {[%emt 0:12:17]} 15. O-O {[%emt 0:09:47]} Nf3+ $2 {[%emt 0:08:31]} (15... g6 $19 {...0-0 is the strong threat.} 16. Qd5 Qb6+ 17. Kg2 Be6) 16. Rxf3 $1 $15 {[%emt 0:00:08]} Bxf3 {[%emt 0:00:02] A strong pair of Bishops.} 17. Bxd6 $2 {[%emt 0:02:44]} ({Only move:} 17. Nf5 $1 $15) 17... Qb6+ $19 {[%emt 0:08:39]} 18. Bc5 {[%emt 0:00:08]} Qg6 {[%emt 0:00:21][%csl LRe4,LRg3]} 19. Qf2 {[%emt 0:04:47]} (19. Qf4 $142 Bxg3 20. hxg3 Qxe4 21. Qd2) 19... Bxe4 {[%emt 0:01:34]} 20. Re1 {[%emt 0:19:47] [#]} O-O-O $1 {[%emt 0:00:26]} 21. Ba7 {[%emt 0:03:50]} Bxg3 {[%emt 0:00:44]} (21... Bc6 $2 22. Bb6 $19) 22. hxg3 {[%emt 0:00:02]} Qf5 {[%emt 0:00:58]} 23. Qe3 {[%emt 0:03:05]} (23. Qxf5+ $142 Bxf5 24. Nd4) 23... Rhe8 {[%emt 0:00:16]} 24. Nd4 {[%emt 0:01:22]} (24. Qc5+ $142 Qxc5+ 25. Bxc5) 24... Qd5 $2 {[%emt 0:00:46]} (24... Qh5 {( -> ...Qh1+)} 25. Qxe4 Rxe4 26. Rxe4 Rd6 27. Re8+ Kd7) 25. Qf4 $2 {[%emt 0:03:21]} (25. Qc3+ Kd7 26. Qb3 (26. Bb6 $2 Rc8 $19)) 25... Qe5 {[%emt 0:00:35]} (25... Bh1 $142 {[%csl Gh1][%cal Rd5g2]} 26. Nf3 Bxf3) 26. Qe3 $2 {[%emt 0:02:53]} (26. Qxe5 Rxe5 27. Re3) 26... Qh5 {[%emt 0:00:06]} 27. Qc3+ {[%emt 0:02:18]} Kd7 {[%emt 0:00:13]} 28. Re2 {[%emt 0:01:10]} Qh1+ {[%emt 0:00:43]} 29. Kf2 {[%emt 0:00:01]} Rc8 {[%emt 0:00:44]} 30. Qb3 {[%emt 0:01:14]} Qg2+ {[%emt 0:00:10]} 31. Ke1 {[%emt 0:00:03]} Qg1+ $2 {[%emt 0:00:04]} (31... Bg6 32. Bb6 Qh1+ 33. Kf2 Rxe2+ 34. Nxe2 Rxc2 35. Qa4+ Kd6 36. Qf4+ Kc6 37. Qc7+ Kb5 38. a4+ Kxa4) 32. Kd2 {[%emt 0:00:16]} Qf1 {[%emt 0:01:27]} ({Don't play} 32... f5 33. Rxe4 $1 Qh2+ 34. Re2 Qh6+ 35. Kd3 Rxe2 36. Nxe2 $14 (36. Kxe2 Re8+ 37. Kf3 Qh1+ 38. Kf2 Qh2+ 39. Kf3 Qh1+ 40. Kf2 Qh2+ 41. Kf3 Qh1+ $11)) (32... Qh1 $1 $19 {White must now prevent ...Bg6.} 33. Qxf7+ Re7) 33. Rxe4 $11 {[%emt 0:02:11]} Qg2+ {[%emt 0:00:31]} (33... Rxe4 $11 34. Qd5+ (34. Qxb7+ Rc7 $11) 34... Kc7 35. Qxe4 Qf2+ 36. Kc3 Qxg3+ 37. Kb4 Qd6+ 38. Bc5 Qf6) 34. Re2 $14 {[%emt 0:00:20]} Rxe2+ {[%emt 0:00:16]} 35. Nxe2 {[%emt 0:00:02]} Ke7 {[%emt 0:00:43]} 36. Qa3+ {[%emt 0:00:55]} Ke6 $2 {[%emt 0:00:21][%mdl 8192]} ({Black should try} 36... Ke8 $1 $14) 37. Qe3+ $18 {[%emt 0:00:47]} Kd7 {[%emt 0:00:21]} 38. Qf2 $2 {[%emt 0:01:14]} (38. Qd4+ $18 Ke6 39. Qg4+ f5 40. Qxg7 Rxc2+ 41. Kxc2 Qxe2+ 42. Kc3) 38... Qxf2 $11 {[%emt 0:00:27] Really sharp!} 39. Bxf2 {[%emt 0:00:03]} Ke6 {[%emt 0:00:13]} 40. c3 {[%emt 0:00:34]} (40. Ke3 $11 {keeps the balance.}) 40... Kf5 $1 $17 {[%emt 0:00:14][%mdl 1024] Black has strong compensation.} 41. Bd4 {[%emt 0:02:20]} g5 {[%emt 0:01:13][%cal Bg7g5,Bg5g4][%mdl 32]} 42. Ke3 {[%emt 0:01:29]} h5 {[%emt 0:02:54]} (42... Kg4 $1 $17) 43. Kf3 $11 {[%emt 0:04:00]} Re8 {[%emt 0:04:46]} 44. Be3 {[%emt 0:04:19]} Kg6 {[%emt 0:03:13]} 45. Nd4 {[%emt 0:02:46]} f5 {[%emt 0:01:40]} 46. Bf2 {[%emt 0:02:39] [#]} (46. Kf2 $11) 46... g4+ $1 $17 {[%emt 0:02:44]} 47. Kg2 {[%emt 0:00:11] [#]} Kg5 $1 {[%emt 0:00:05]} 48. a4 {[%emt 0:03:15]} f4 {[%emt 0:01:50]} 49. gxf4+ {[%emt 0:02:51]} Kxf4 {[%emt 0:00:02]} 50. Bh4 {[%emt 0:00:45]} Re3 {[%emt 0:00:37]} 51. Bf2 {[%emt 0:01:24]} Re4 {[%emt 0:02:04]} 52. Bh4 {[%emt 0:01:15]} Re3 {[%emt 0:07:03]} 53. Bf2 {[%emt 0:00:05]} Re8 {[%emt 0:00:12]} (53... Rd3 $19 {Strongly threatening ...Rd2.} 54. Ne2+ Kg5) 54. Bh4 $1 {[%emt 0:00:44]} Ke3 {[%emt 0:09:00]} 55. Bg5+ {[%emt 0:05:59]} Kd3 {[%emt 0:00:32]} 56. Kf2 {[%emt 0:00:55] Inhibits Re1.} (56. Bh4 $17 {was called for.}) 56... b5 $2 {[%emt 0:00:28]} (56... Re5 $19 57. Bf6 Ra5) 57. axb5 $11 {[%emt 0:01:05]} axb5 {[%emt 0:00:01][%cal Ob5b4]} 58. Nxb5 $2 {[%emt 0:01:29][%mdl 8192]} (58. Bh4 $11) 58... Re5 $19 {[%emt 0:00:40][%csl LRb5,LRg5]} 59. Bh6 {[%emt 0:02:08]} Rxb5 {[%emt 0:00:05] KR-KB. Black mates.} 60. Kg3 {[%emt 0:00:08]} Rxb2 {[%emt 0:00:31]} 61. Bg7 {[%emt 0:00:14]} Ke4 {[%emt 0:00:32]} 62. Bd4 {[%emt 0:00:42]} Rd2 {[%emt 0:00:34]} 63. Bf6 {[%emt 0:00:48]} Kf5 {[%emt 0:00:05]} 64. Bd4 {[%emt 0:00:33]} Rd3+ {[%emt 0:00:10]} 65. Kg2 {[%emt 0:00:17]} h4 {[%emt 0:00:04]} 66. Kh2 {[%emt 0:00:37]} Rxd4 {[%emt 0:00:14] What a fight!  Weighted Error Value: White=1.14/Black=0.81} 0-1

[Event "FIDE CB Open 2022"]
[Site "Ceske Budejovice"]
[Date "2022.07.05"]
[Round "5.42"]
[White "Toman, Jan"]
[Black "Hrbek, Jachym"]
[Result "1-0"]
[ECO "A88"]
[WhiteElo "2142"]
[BlackElo "1695"]
[Annotator "TA"]
[PlyCount "49"]
[EventDate "2022.07.01"]
[EventType "swiss"]
[EventCountry "CZE"]
[SourceTitle "playchess.com"]
[Source "ChessBase"]
[SourceQuality "1"]
[TimeControl "40/5400+30:1800+30"]

{[%evp 16,49,65,24,41,27,62,66,55,42,56,11,40,39,75,72,61,68,72,34,87,87,92,110,119,119,143,138,497,509,659,661,654,575,620,554]} 1. Nf3 {[%emt 0:00:07]} f5 {[%emt 0:01:05]} 2. c4 {[%emt 0:02:03]} Nf6 {[%emt 0:00:10]} 3. g3 {[%emt 0:01:18]} d6 {[%emt 0:00:17]} 4. d4 {[%emt 0:01:13]} g6 {[%emt 0:00:21]} 5. Bg2 {[%emt 0:00:07]} Bg7 {[%emt 0:00:15]} 6. O-O {[%emt 0:00:06]} O-O {[%emt 0:00:25]} 7. Nc3 {[%emt 0:00:42]} Qe8 {[%emt 0:02:11] The old main line.} 8. Re1 {[%emt 0:05:19]} c6 {[%emt 0:17:07]} 9. d5 {[%emt 0:08:51]} Na6 {[%emt 0:06:39] A88: Dutch Defence: Leningrad System: 5 Nf3 0-0 6 0-0 d6 7 Nc3 c6.} 10. Nd4 {[%emt 0:07:54][%cal Rd5c6]} Bd7 {[%emt 0:07:42]} 11. e4 {[%emt 0:03:30]} fxe4 {[%emt 0:00:22] White is slightly better.} 12. Nxe4 {[%emt 0:00:13]} Nxe4 {[%emt 0:09:02]} 13. Bxe4 {[%emt 0:01:08]} Qf7 {[%emt 0:05:34]} 14. Be3 {[%emt 0:03:05][%cal Rd5c6,Bc1e3,Be3f4,Bf4d6,Bd6a3][%mdl 32] [#] Active counter play!} e5 $146 {[%emt 0:03:51]} ({Predecessor:} 14... Nc5 15. Bg2 e5 16. Nb3 Nxb3 17. Qxb3 c5 18. Qxb7 Rfb8 19. Qc7 Rb6 20. b4 Rc8 21. Qxa7 Rxb4 {½-½ (53) Michniewski,T (2202)-Kornasiewicz,J (2165) Polanica Zdroj 2004}) 15. dxe6 {[%emt 0:01:43]} Bxe6 {[%emt 0:00:21]} 16. Nxe6 {[%emt 0:00:21]} Qxe6 {[%emt 0:00:08]} 17. Bf4 {[%emt 0:14:21][%cal Oe4d5] [#] Hoping for Bd5!} Qf6 {[%emt 0:08:48]} (17... Qxc4 $14 18. Bxd6 Rfe8) 18. Qxd6 $16 {[%emt 0:03:05]} Qxd6 {[%emt 0:01:52]} 19. Bxd6 {[%emt 0:00:06] This bishop pair is nice.} Rfd8 {[%emt 0:00:06]} 20. Ba3 {[%emt 0:13:00]} Rd2 {[%emt 0:06:39]} 21. Rad1 {[%emt 0:00:20]} Rad8 {[%emt 0:00:09][%mdl 8192] [#] Loses the game.} (21... Rxd1 $16 {is a better chance.} 22. Rxd1 Bf8) 22. Bd5+ $1 $18 {[%emt 0:00:38][%mdl 512] White is clearly winning.} R8xd5 {[%emt 0:01:59]} (22... R2xd5 23. cxd5) 23. cxd5 {[%emt 0:00:05]} Rxd5 {[%emt 0:00:08]} 24. Rxd5 {[%emt 0:00:10]} cxd5 {[%emt 0:00:03]} 25. Re7 {[%emt 0:00:37] Weighted Error Value: White=0.14 (very precise) /Black=0.87} 1-0